[Event "XVI Ugra Cup 2020"]
[Site "Khanty-Mansiysk"]
[Date "2020.12.08"]
[Round "9.7"]
[White "Matinian, Nikita"]
[Black "Tunik, Sergey"]
[Result "1-0"]
[ECO "C15"]
[WhiteElo "2470"]
[BlackElo "2128"]
[Annotator "ChessBase"]
[PlyCount "61"]
[EventDate "2020.11.30"]
[EventType "swiss"]
[EventCountry "RUS"]
[SourceTitle "playchess.com"]
[Source "ChessBase"]
[SourceQuality "1"]
[TimeControl "5400+30"]

1. e4 {[%emt 0:01:43]} e6 {[%emt 0:00:00]} 2. d4 {[%emt 0:00:04]} d5 {[%emt 0:00:00]} 3. Nc3 {[%emt 0:00:03]} Bb4 {[%emt 0:00:00]} 4. Nge2 {[%emt 0:00:05]} dxe4 {[%emt 0:02:48]} 5. a3 {[%emt 0:00:03]} Be7 {[%emt 0:00:10]} 6. Nxe4 {[%emt 0:00:08]} Nd7 {[%emt 0:01:47]} 7. Nf4 {[%emt 0:02:57]} Ngf6 {[%emt 0:01:02]} 8. Bd3 {[%emt 0:07:46]} e5 {[%emt 0:12:18]} 9. Nh5 {[%emt 0:38:01]} Nxh5 {[%emt 0:08:51]} 10. Qxh5 {[%emt 0:03:49]} O-O {[%emt 0:21:43]} 11. h4 {[%emt 0:14:56]} f5 {[%emt 0:06:26]} 12. Ng5 {[%emt 0:02:27]} Nf6 {[%emt 0:00:22]} 13. Bc4+ {[%emt 0:00:56]} Kh8 {[%emt 0:00:07]} 14. Nf7+ {[%emt 0:00:38]} Rxf7 {[%emt 0:00:06]} 15. Qxf7 {[%emt 0:00:03]} exd4 {[%emt 0:06:34]} 16. Bg5 {[%emt 0:01:09]} b5 {[%emt 0:02:46]} 17. Ba2 {[%emt 0:05:01]} Qf8 {[%emt 0:06:48]} 18. O-O-O {[%emt 0:00:50]} Qxf7 {[%emt 0:00:17]} 19. Bxf7 {[%emt 0:00:05]} Bb7 {[%emt 0:00:09]} 20. Rhe1 {[%emt 0:00:13]} Bc5 {[%emt 0:01:29]} 21. Re5 {[%emt 0:03:23]} Nd7 {[%emt 0:03:20]} 22. Rxf5 {[%emt 0:00:27]} h6 {[%emt 0:06:12]} 23. Bf4 {[%emt 0:03:10]} Be4 {[%emt 0:01:42]} 24. Bd5 {[%emt 0:00:17]} Bxf5 {[%emt 0:00:19]} 25. Bxa8 {[%emt 0:00:07]} d3 {[%emt 0:00:38]} 26. cxd3 {[%emt 0:01:00]} Bxf2 {[%emt 0:00:07]} 27. g3 {[%emt 0:00:44]} Nc5 {[%emt 0:00:20]} 28. Kc2 {[%emt 0:01:28]} Ne6 {[%emt 0:04:03]} 29. Rf1 {[%emt 0:01:19]} Bb6 {[%emt 0:00:13]} 30. Be5 {[%emt 0:00:44]} Bg6 {[%emt 0:00:24]} 31. Bd5 {[%emt 0:00:12]} 1-0

[Event "XVI Ugra Cup 2020"]
[Site "Khanty-Mansiysk"]
[Date "2020.12.08"]
[Round "9.8"]
[White "Schekachikhin, Maksim"]
[Black "Fomkin, Dmitry"]
[Result "1-0"]
[ECO "A11"]
[WhiteElo "2416"]
[BlackElo "1949"]
[Annotator "ChessBase"]
[PlyCount "73"]
[EventDate "2020.11.30"]
[EventType "swiss"]
[EventCountry "RUS"]
[SourceTitle "playchess.com"]
[Source "ChessBase"]
[SourceQuality "1"]
[TimeControl "5400+30"]

1. c4 {[%emt 0:00:00]} c6 {[%emt 0:00:07]} 2. Nf3 {[%emt 0:00:00]} d5 {[%emt 0:00:37]} 3. e3 {[%emt 0:00:00]} Nf6 {[%emt 0:00:56]} 4. Nc3 {[%emt 0:00:20]} e6 {[%emt 0:01:19]} 5. b3 {[%emt 0:00:19]} Nbd7 {[%emt 0:01:20]} 6. Bb2 {[%emt 0:00:13]} Bd6 {[%emt 0:02:30]} 7. d4 {[%emt 0:00:10]} O-O {[%emt 0:01:18]} 8. Bd3 {[%emt 0:00:08]} b6 {[%emt 0:01:53]} 9. O-O {[%emt 0:00:22]} Bb7 {[%emt 0:00:55]} 10. Qc2 {[%emt 0:00:07]} c5 {[%emt 0:03:08]} 11. cxd5 {[%emt 0:01:10]} exd5 {[%emt 0:00:09]} 12. Rfd1 {[%emt 0:04:49]} Qe7 {[%emt 0:02:51]} 13. Bf5 {[%emt 0:03:52]} Rfd8 {[%emt 0:03:18]} 14. Rac1 {[%emt 0:05:18]} a6 {[%emt 0:04:08]} 15. Ne2 {[%emt 0:18:24]} Ne4 {[%emt 0:06:35]} 16. Ng3 {[%emt 0:07:21]} Ndf6 {[%emt 0:11:03]} 17. dxc5 {[%emt 0:05:04]} bxc5 {[%emt 0:00:42]} 18. Bxe4 {[%emt 0:02:00]} dxe4 {[%emt 0:01:15]} 19. Bxf6 {[%emt 0:02:06]} Qxf6 {[%emt 0:06:24]} 20. Nxe4 {[%emt 0:00:57]} Qg6 {[%emt 0:01:29]} 21. Nxd6 {[%emt 0:01:04]} Rxd6 {[%emt 0:00:42]} 22. Rxd6 {[%emt 0:02:46]} Qxd6 {[%emt 0:00:05]} 23. Qxc5 {[%emt 0:00:31]} Qg6 {[%emt 0:00:17]} 24. Qg5 {[%emt 0:01:27]} Qe4 {[%emt 0:01:30]} 25. h3 {[%emt 0:00:42]} h6 {[%emt 0:00:30]} 26. Qg4 {[%emt 0:01:16]} Qd3 {[%emt 0:00:52]} 27. Nd4 {[%emt 0:01:38]} g6 {[%emt 0:09:44]} 28. Qf4 {[%emt 0:02:55]} Bd5 {[%emt 0:01:56]} 29. Qxh6 {[%emt 0:01:55]} Qd2 {[%emt 0:00:43]} 30. Rc5 {[%emt 0:00:47]} Be4 {[%emt 0:02:14]} 31. Qf4 {[%emt 0:00:43]} Bd3 {[%emt 0:02:18]} 32. Rc7 {[%emt 0:01:08]} Rf8 {[%emt 0:02:48]} 33. Qf6 {[%emt 0:00:48]} Be4 {[%emt 0:05:16]} 34. Qe5 {[%emt 0:01:53]} Qd3 {[%emt 0:06:37]} 35. Ne6 {[%emt 0:03:06]} f6 {[%emt 0:03:04]} 36. Rg7+ {[%emt 0:00:15]} Kh8 {[%emt 0:00:14]} 37. Qc7 {[%emt 0:00:12]} 1-0

[Event "XVI Ugra Cup 2020"]
[Site "Khanty-Mansiysk"]
[Date "2020.12.08"]
[Round "9.9"]
[White "Mongush, Kezhik"]
[Black "Vetokhin, Savva"]
[Result "0-1"]
[ECO "E32"]
[WhiteElo "1942"]
[BlackElo "2317"]
[Annotator "ChessBase"]
[PlyCount "97"]
[EventDate "2020.11.30"]
[EventType "swiss"]
[EventCountry "RUS"]
[SourceTitle "playchess.com"]
[Source "ChessBase"]
[SourceQuality "1"]
[TimeControl "5400+30"]

1. d4 {[%emt 0:00:00]} Nf6 {[%emt 0:00:00]} 2. c4 {[%emt 0:00:00]} e6 {[%emt 0:00:00]} 3. Nc3 {[%emt 0:00:00]} Bb4 {[%emt 0:00:11]} 4. Qc2 {[%emt 0:01:12]} O-O {[%emt 0:01:12]} 5. Nf3 {[%emt 0:01:08]} b6 {[%emt 0:00:50]} 6. g3 {[%emt 0:07:31]} Bb7 {[%emt 0:00:58]} 7. Bg2 {[%emt 0:00:15]} d6 {[%emt 0:00:35]} 8. O-O {[%emt 0:00:26]} Bxc3 {[%emt 0:00:29]} 9. Qxc3 {[%emt 0:00:25]} Nbd7 {[%emt 0:02:18]} 10. b3 {[%emt 0:02:38]} Qe7 {[%emt 0:01:25]} 11. Bb2 {[%emt 0:09:53]} Ne4 {[%emt 0:00:40]} 12. Qc2 {[%emt 0:00:28]} f5 {[%emt 0:00:47]} 13. Nd2 {[%emt 0:01:08]} Ndf6 {[%emt 0:01:20]} 14. f3 {[%emt 0:00:37]} Nxd2 {[%emt 0:00:16]} 15. Qxd2 {[%emt 0:00:01]} Rad8 {[%emt 0:02:14]} 16. Rae1 {[%emt 0:05:05]} e5 {[%emt 0:01:24]} 17. e4 {[%emt 0:01:58]} fxe4 {[%emt 0:17:09]} 18. fxe4 {[%emt 0:00:18]} Nd7 {[%emt 0:00:48]} 19. Rxf8+ {[%emt 0:08:47]} Rxf8 {[%emt 0:00:18]} 20. Bh3 {[%emt 0:00:32]} Nf6 {[%emt 0:01:49]} 21. Bg2 {[%emt 0:05:46]} Ng4 {[%emt 0:04:37]} 22. h3 {[%emt 0:05:34]} Nf6 {[%emt 0:00:50]} 23. dxe5 {[%emt 0:13:17]} dxe5 {[%emt 0:00:08]} 24. Qc3 {[%emt 0:00:33]} Qc5+ {[%emt 0:03:49]} 25. Kh2 {[%emt 0:07:36]} Qf2 {[%emt 0:05:07]} 26. Rf1 {[%emt 0:05:33]} Qe2 {[%emt 0:00:07]} 27. Re1 {[%emt 0:01:32]} Qh5 {[%emt 0:00:53]} 28. Bf3 {[%emt 0:04:54]} Qh6 {[%emt 0:01:31]} 29. Qxe5 {[%emt 0:05:03]} Bc8 {[%emt 0:05:58]} 30. Kg1 {[%emt 0:03:07]} Bxh3 {[%emt 0:00:47]} 31. Bc1 {[%emt 0:03:08]} Qg6 {[%emt 0:00:27]} 32. Bf4 {[%emt 0:00:35]} Bg4 {[%emt 0:01:47]} 33. Bg2 {[%emt 0:01:08]} Nh5 {[%emt 0:00:45]} 34. Qd5+ {[%emt 0:00:48]} Be6 {[%emt 0:00:17]} 35. Qe5 {[%emt 0:02:27]} Bh3 {[%emt 0:02:37]} 36. Re2 {[%emt 0:01:27]} Nxf4 {[%emt 0:00:12]} 37. gxf4 {[%emt 0:00:09]} Qg4 {[%emt 0:01:03]} 38. Rd2 {[%emt 0:02:19]} h6 {[%emt 0:00:59]} 39. f5 {[%emt 0:00:23]} Qg5 {[%emt 0:02:13]} 40. Qd4 {[%emt 0:01:27]} h5 {[%emt 0:01:50]} 41. Kf1 {[%emt 0:00:49]} Bg4 {[%emt 0:00:51]} 42. Qd5+ {[%emt 0:00:29]} Kh7 {[%emt 0:00:04]} 43. Kg1 {[%emt 0:00:32]} h4 {[%emt 0:00:05]} 44. Kh2 {[%emt 0:00:30]} Qf4+ {[%emt 0:00:13]} 45. Kg1 {[%emt 0:00:13]} h3 {[%emt 0:00:05]} 46. Bh1 {[%emt 0:00:30]} Qg3+ {[%emt 0:00:42]} 47. Kf1 {[%emt 0:00:34]} h2 {[%emt 0:00:03]} 48. Bg2 {[%emt 0:00:44]} Bh3 {[%emt 0:00:06]} 49. e5 0-1

[Event "XVI Ugra Cup 2020"]
[Site "Khanty-Mansiysk"]
[Date "2020.12.08"]
[Round "9.10"]
[White "Rozum, Ivan"]
[Black "Makov, Artem"]
[Result "1-0"]
[ECO "A11"]
[WhiteElo "2563"]
[BlackElo "1883"]
[Annotator "ChessBase"]
[PlyCount "45"]
[EventDate "2020.11.30"]
[EventType "swiss"]
[EventCountry "RUS"]
[SourceTitle "playchess.com"]
[Source "ChessBase"]
[SourceQuality "1"]
[TimeControl "5400+30"]

1. c4 {[%emt 0:00:17]} c6 {[%emt 0:00:00]} 2. Nf3 {[%emt 0:00:35]} d5 {[%emt 0:00:00]} 3. g3 {[%emt 0:00:19]} Nf6 {[%emt 0:00:02]} 4. Bg2 {[%emt 0:00:08]} Bf5 {[%emt 0:00:09]} 5. O-O {[%emt 0:00:40]} e6 {[%emt 0:00:23]} 6. cxd5 {[%emt 0:01:35]} exd5 {[%emt 0:01:55]} 7. d3 {[%emt 0:01:17]} h6 {[%emt 0:02:12]} 8. Qb3 {[%emt 0:06:47]} Qb6 {[%emt 0:05:19]} 9. Qc2 {[%emt 0:01:40]} Be7 {[%emt 0:07:38]} 10. Nc3 {[%emt 0:01:15]} O-O {[%emt 0:08:22]} 11. e4 {[%emt 0:00:48]} dxe4 {[%emt 0:02:44]} 12. dxe4 {[%emt 0:00:19]} Bh7 {[%emt 0:00:29]} 13. Be3 {[%emt 0:02:51]} Qa5 {[%emt 0:04:40]} 14. Nd4 {[%emt 0:08:39]} Ng4 {[%emt 0:09:12]} 15. Bf4 {[%emt 0:01:09]} Qb4 {[%emt 0:05:36]} 16. Rad1 {[%emt 0:03:10]} Bg5 {[%emt 0:01:42]} 17. a3 {[%emt 0:10:23]} Qb6 {[%emt 0:14:15]} 18. Na4 {[%emt 0:04:52]} Qa5 {[%emt 0:07:10]} 19. b4 {[%emt 0:05:59]} Qa6 {[%emt 0:03:03]} 20. Bxb8 {[%emt 0:12:10]} Raxb8 {[%emt 0:02:05]} 21. h3 {[%emt 0:02:34]} Nf6 {[%emt 0:04:09]} 22. f4 {[%emt 0:03:22]} Nd5 {[%emt 0:00:15]} 23. Qb3 {[%emt 0:01:23]} 1-0